fUSD/lending_fUSD_20260416
["ID","MTS","AMOUNT","RATE_DAILY","PERIOD"]
[420614115,1776345039138,-279.70781,0.000102,2]
[420614116,1776345039148,-397.6286905,0.000102,2]
[420614117,1776345039157,-279.7078,0.0001022,2]
[420614118,1776345039167,-151.0,0.00010227,2]
[420614119,1776345039176,-500.0,0.00010227,2]
[420614120,1776345039185,-350.0,0.00010229,2]
[420614121,1776345039194,-165.709,0.0001023,2]
[420614122,1776345039204,-3777.0,0.00010243,2]
[420614123,1776345039213,-416.0,0.00010243,2]
[420614124,1776345039223,-279.7078,0.0001025,2]
[420614125,1776345039232,-160.0,0.00010254,2]
[420614126,1776345039241,-150.0,0.00010268,2]
[420614127,1776345039250,-576.03341093,0.0001029,2]
[420614128,1776345039260,-200.0,0.00010294,2]
[420614129,1776345039269,-721.12765535,0.00010294,2]
[420614130,1776345039279,-151.0,0.00010294,2]
[420614131,1776345039288,-151.0,0.00010294,2]
[420614132,1776345039298,-151.0,0.00010294,2]
[420614133,1776345039308,-151.0,0.00010294,2]
[420614134,1776345039317,-151.0,0.00010294,2]
[420614135,1776345039327,-151.0,0.00010294,2]
[420614136,1776345039336,-151.0,0.00010294,2]
[420614137,1776345039346,-151.0,0.00010294,2]
[420614138,1776345039355,-151.0,0.00010294,2]
[420614139,1776345039364,-151.0,0.00010294,2]
[420614140,1776345039374,-151.0,0.00010294,2]
[420614141,1776345039384,-500.0,0.00010294,2]
[420614142,1776345039393,-500.0,0.00010294,2]
[420614143,1776345039402,-500.0,0.00010294,2]
[420614144,1776345039412,-500.0,0.00010294,2]
[420614145,1776345039423,-1428.38747117,0.00010294,2]
[420614146,1776345039433,-500.0,0.00010294,2]
[420614147,1776345039442,-500.0,0.00010294,2]
[420614148,1776345039452,-500.0,0.00010294,2]
[420614149,1776345039462,-500.0,0.00010294,2]
[420614150,1776345039473,-500.0,0.00010294,2]
[420614151,1776345039483,-500.0,0.00010294,2]
[420614152,1776345039493,-500.0,0.00010294,2]
[420614153,1776345039502,-500.0,0.00010294,2]
[420614154,1776345039512,-500.0,0.00010294,2]
[420614155,1776345039522,-500.0,0.00010294,2]
[420614156,1776345039533,-216.77879952,0.00010294,2]
[420614157,1776345039545,-500.0,0.00010294,2]
[420614158,1776345039554,-350.0,0.00010295,2]
[420614159,1776345039564,-155.0,0.00010299,2]
[420614160,1776345039574,-155.0,0.00010299,2]
[420614161,1776345039583,-479.0,0.000103,5]
[420614162,1776345039595,-250.0,0.000103,2]
[420614163,1776345039604,-570766.58032611,0.000103,2]
[420614164,1776345039614,-151.0,0.000103,2]
[420614165,1776345039623,-150.0,0.000103,2]
[420614166,1776345039632,-151.0,0.000103,2]
[420614167,1776345039642,-446614.24854383,0.000103,2]
[420614178,1776345043142,-2473.0,0.00010243,2]
[420614179,1776345043152,-1217.47227696,0.000103,2]
[420614182,1776345046216,-200.0,9.6e-05,3]
[420614183,1776345046226,-165.581,0.0001023,2]
[420614184,1776345046235,-319662.71967594,0.000103,2]
[420614185,1776345046272,-1450.3905,0.000103,2]
[420614186,1776345046700,-3103.0,0.000103,2]
[420614187,1776345046711,-6534.39118148,0.000103,2]
[420614188,1776345090931,-2270.43,9.55e-05,2]
[420614189,1776345090956,-2000.0,9.55e-05,2]
[420614190,1776345090979,-170.42,9.683e-05,2]
[420614191,1776345091003,-500.0,9.7e-05,3]
[420614192,1776345274795,425.66,0.00010219,30]
[420614193,1776345278349,-1600.0,9.453e-05,2]
[420614194,1776345340847,-150.0,9.657e-05,2]
[420614195,1776345399620,407.17,0.00013808,30]
[420614196,1776345430993,742.12,0.000165,30]
[420614197,1776345604632,153.0,7.5e-05,3]
[420614198,1776345608333,-153.0,8.708e-05,3]
[420614199,1776345699937,203.58,0.00013691,30]
[420614200,1776345700191,203.58,0.00013691,30]
[420614201,1776345830163,-179.59,9.8e-05,3]
[420614203,1776346100420,-644.37,9.233e-05,2]
[420614204,1776346100443,-163.28,9.628e-05,2]
[420614205,1776346100467,-200.0,9.7e-05,3]
[420614206,1776346104376,500.0,8.303e-05,2]
[420614207,1776346204495,155.0,7.5e-05,3]
[420614217,1776346232112,-300.0,9.698e-05,2]
[420614219,1776346232122,-196.2484482,9.698e-05,2]
[420614221,1776346232382,-1003.7515518,9.698e-05,2]
[420614222,1776346232391,-150.0,9.698e-05,2]
[420614223,1776346232401,-500.0,9.699e-05,2]
[420614224,1776346232412,-500.0,9.699e-05,2]
[420614225,1776346232421,-500.0,9.699e-05,2]
[420614226,1776346232431,-500.0,9.699e-05,2]
[420614227,1776346232445,-500.0,9.699e-05,2]
[420614228,1776346232455,-500.0,9.699e-05,2]
[420614229,1776346232464,-500.0,9.699e-05,2]
[420614230,1776346232475,-500.0,9.699e-05,2]
[420614231,1776346232485,-500.0,9.699e-05,2]
[420614232,1776346232494,-500.0,9.699e-05,2]
[420614233,1776346232503,-500.0,9.699e-05,2]
[420614234,1776346232513,-500.0,9.699e-05,2]
[420614235,1776346232523,-500.0,9.699e-05,2]
[420614236,1776346232532,-500.0,9.699e-05,2]
[420614237,1776346232541,-500.0,9.699e-05,2]
[420614239,1776346232550,-500.0,9.699e-05,2]
[420614241,1776346232560,-500.0,9.699e-05,2]
[420614243,1776346232569,-500.0,9.699e-05,2]
[420614244,1776346232578,-500.0,9.699e-05,2]
[420614246,1776346232588,-400.0,9.8e-05,3]
[420614247,1776346232598,-578.20924308,9.9e-05,2]
[420614248,1776346232607,-600.0,9.9e-05,3]
[420614249,1776346232616,-1000.0,9.906e-05,2]
[420614250,1776346232625,-8000.0,9.906e-05,2]
[420614252,1776346232634,-67713.02052808,9.906e-05,2]
[420614254,1776346232646,-13577.29509218,9.906e-05,2]
[420614259,1776346238419,-4562.98616399,9.906e-05,2]
[420614281,1776346243894,-5699.89022824,9.906e-05,2]
[420614282,1776346243910,-548.637107,9.906e-05,2]
[420614305,1776346244202,-3815.60392217,9.906e-05,2]
[420614306,1776346244315,-630.94218424,9.906e-05,2]
[420614322,1776346246221,-3813.95169989,9.906e-05,2]
[420614323,1776346246233,-7420.14830011,9.906e-05,2]
[420614324,1776346246246,-7115.99995,9.906e-05,2]
[420614325,1776346246258,-8356.42827535,9.906e-05,2]
[420614326,1776346246387,-660.41652157,9.906e-05,2]
[420614327,1776346246445,-2638.84874039,9.906e-05,2]
[420614328,1776346246458,-1588.671315,9.906e-05,2]
[420614329,1776346246610,-59105.36965777,9.906e-05,2]
[420614330,1776346246668,-35579.04335974,9.906e-05,2]
[420614359,1776346804743,154.0,7.5e-05,3]
[420614360,1776347243083,210.53207182,0.000165,60]
[420614361,1776347404269,154.0,7.5e-05,3]
[420614369,1776347432136,-160.0,9e-05,2]
[420614370,1776347432146,-162.96,9.257e-05,2]
[420614371,1776347432156,-200.0,9.257e-05,2]
[420614372,1776347432165,-1500.0,9.298e-05,2]
[420614373,1776347432174,-154.0,9.312e-05,3]
[420614374,1776347432184,-1441.15972123,9.343e-05,2]
[420614375,1776347432200,-411.26027877,9.343e-05,2]
[420614376,1776347432210,-200.0,9.7e-05,3]
[420614377,1776347432220,-578.20924308,9.754e-05,2]
[420614378,1776347432230,-150.0,9.792e-05,2]
[420614379,1776347432239,-300.0,9.792e-05,2]
[420614380,1776347432248,-1200.0,9.792e-05,2]
[420614381,1776347432258,-76209.6178,9.793e-05,2]
[420614382,1776347432267,-4636.4993,9.793e-05,2]
[420614383,1776347432276,-400.0,9.8e-05,3]
[420614384,1776347432285,-160.0,9.802e-05,2]
[420614385,1776347432295,-160.0,9.802e-05,2]
[420614386,1776347432304,-160.0,9.802e-05,2]
[420614387,1776347432314,-160.0,9.802e-05,2]
[420614388,1776347432324,-1000.0,9.806e-05,2]
[420614389,1776347432334,-196.7527,9.806e-05,2]
[420614390,1776347432343,-174.61919141,9.887e-05,2]
[420614391,1776347432352,-5944.89475908,9.887e-05,2]
[420614392,1776347432361,-151.0,9.887e-05,2]
[420614393,1776347432370,-3609.3126448,9.893e-05,2]
[420614394,1776347432380,-7083.3491458,9.893e-05,2]
[420614395,1776347432390,-17088.7769776,9.893e-05,2]
[420614396,1776347432400,-4260.0045519,9.893e-05,2]
[420614397,1776347432410,-24785.0237862,9.893e-05,2]
[420614398,1776347432419,-40508.85454219,9.893e-05,2]
[420614399,1776347432431,-544.144535,9.893e-05,2]
[420614400,1776347432445,-11282.09698471,9.893e-05,2]
[420614401,1776347432454,-168.337384,9.893e-05,2]
[420614402,1776347432464,-160.0,9.9e-05,2]
[420614403,1776347432473,-600.0,9.9e-05,3]
[420614404,1776347432482,-160.0,9.9e-05,2]
[420614405,1776347432492,-333.2884482,9.9e-05,2]
[420614406,1776347432501,-500.0,9.9e-05,2]
[420614407,1776347432510,-721.12765535,9.9e-05,2]
[420614408,1776347432519,-500.0,9.9e-05,2]
[420614409,1776347432529,-500.0,9.9e-05,2]
[420614410,1776347432539,-500.0,9.9e-05,2]
[420614411,1776347432551,-500.0,9.9e-05,2]
[420614412,1776347432560,-500.0,9.9e-05,2]
[420614413,1776347432569,-500.0,9.9e-05,2]
[420614414,1776347432580,-500.0,9.9e-05,2]
[420614415,1776347432590,-500.0,9.9e-05,2]
[420614416,1776347432599,-500.0,9.9e-05,2]
[420614417,1776347432609,-500.0,9.9e-05,2]
[420614418,1776347432618,-200.0,9.9e-05,2]
[420614419,1776347432628,-553.14952778,9.9e-05,2]
[420614420,1776347432677,-558.74,9.9e-05,2]
[420614424,1776347438716,-316.49794339,9.9e-05,2]
[420614425,1776347438726,-284.14860577,9.9e-05,2]
[420614426,1776347438736,-500.0,9.906e-05,2]
[420614427,1776347438746,-500.0,9.906e-05,2]
[420614428,1776347438756,-152.0,9.944e-05,7]
[420614429,1776347438765,-150.0,9.957e-05,2]
[420614430,1776347438775,-160.0,0.0001,2]
[420614431,1776347438785,-160.0,0.0001,2]
[420614432,1776347438795,-160.0,0.0001,2]
[420614433,1776347438805,-160.0,0.0001,2]
[420614434,1776347438814,-160.0,0.0001,2]
[420614435,1776347438823,-160.0,0.0001,2]
[420614436,1776347438833,-160.0,0.0001,2]
[420614437,1776347438842,-200.0,0.0001,2]
[420614438,1776347438852,-500.0,0.0001,2]
[420614439,1776347438861,-500.0,0.0001,2]
[420614440,1776347438870,-500.0,0.0001,2]
[420614441,1776347438881,-500.0,0.0001,2]
[420614442,1776347438891,-500.0,0.0001,2]
[420614443,1776347438900,-500.0,0.0001,2]
[420614444,1776347438910,-2.19197038,0.0001,2]
[420614445,1776347438929,-497.80802962,0.0001,2]
[420614446,1776347438939,-500.0,0.0001,2]
[420614447,1776347438949,-500.0,0.0001,2]
[420614448,1776347438958,-500.0,0.0001,2]
[420614449,1776347438968,-200.39197037,0.0001,2]
[420614450,1776347438980,-299.60802963,0.0001,2]
[420614451,1776347438989,-240.40417083,0.0001,2]
[420614452,1776347439015,-259.59582917,0.0001,2]
[420614453,1776347439024,-500.0,0.0001,2]
[420614454,1776347439034,-164.97678083,0.0001,2]
[420614455,1776347439078,-335.02321917,0.0001,2]
[420614456,1776347439087,-415.95352887,0.0001,2]
[420614458,1776347439099,-970.83042372,0.0001,2]
[420614460,1776347439108,-115.60907678,0.0001,2]
[420614529,1776347439739,-35.39092322,0.0001,2]
[420614531,1776347439749,-151.0,0.0001,2]
[420614533,1776347439758,-151.0,0.0001,2]
[420614535,1776347439767,-151.0,0.0001,2]
[420614537,1776347439776,-151.0,0.0001,2]
[420614539,1776347439787,-151.0,0.0001,2]
[420614540,1776347439797,-151.0,0.0001,2]
[420614542,1776347439807,-151.0,0.0001,2]
[420614544,1776347439816,-151.0,0.0001,2]
[420614546,1776347439825,-93.12491678,0.0001,2]
[420614549,1776347439842,-57.87508322,0.0001,2]
[420614551,1776347439851,-151.0,0.0001,2]
[420614553,1776347439860,-151.0,0.0001,2]
[420614555,1776347439870,-163.02444934,0.0001,3]
[420614558,1776347439885,-636.97555066,0.0001,3]
[420614560,1776347439894,-151.0,0.0001,2]
[420614562,1776347439903,-265.64755603,0.0001,2]
[420614564,1776347439912,-265.64755603,0.0001,2]
[420614566,1776347439921,-265.64755603,0.0001,2]
[420614568,1776347439929,-500.0,0.0001002,2]
[420614570,1776347439938,-227.23809759,0.0001002,2]
[420615129,1776347445481,-272.76190241,0.0001002,2]
[420615132,1776347445491,-500.0,0.0001002,2]
[420615134,1776347445501,-612.64553668,0.0001002,2]
[420615136,1776347445510,-152.0,0.00010055,7]
[420615138,1776347445519,-1047.0,0.00010104,2]
[420615140,1776347445529,-3528.0,0.00010104,2]
[420615142,1776347445539,-63.27382007,0.00010104,2]
[420615165,1776347445747,-755.6093196,9.806e-05,2]
[420615190,1776347445985,-244.3906804,9.806e-05,2]
[420615192,1776347445995,-558.72617993,0.00010104,2]
[420615194,1776347446004,-1351.686,0.00010104,2]
[420615196,1776347446014,-599.476,0.00010104,2]
[420615199,1776347446024,-928.317,0.00010104,2]
[420615200,1776347446034,-1221.066,0.00010104,2]
[420615202,1776347446044,-150.0,0.00010104,2]
[420615204,1776347446056,-416.0,0.00010104,2]
[420615207,1776347446066,-2473.0,0.00010104,2]
[420615209,1776347446076,-6028.0,0.00010104,2]
[420615211,1776347446086,-153.79322456,0.000102,2]
[420615213,1776347446096,-205.11905,0.000102,2]
[420615215,1776347446106,-205.11906,0.000102,2]
[420615217,1776347446116,-3085.367,0.00010226,2]
[420615219,1776347446126,-237.356,0.00010226,2]
[420615221,1776347446135,-200.0,0.00010247,2]
[420615223,1776347446145,-193.26,0.00010247,2]
[420615225,1776347446155,-150.0,0.00010257,2]
[420615227,1776347446166,-160.0,0.00010266,2]
[420615229,1776347446176,-500.0,0.00010299,2]
[420615231,1776347446186,-225.15860967,0.00010299,2]
[420615233,1776347446196,-498.34877372,0.00010299,2]
[420615293,1776347446757,-1.65122628,0.00010299,2]
[420615295,1776347446768,-500.0,0.00010299,2]
[420615297,1776347446777,-198.5565571,0.00010299,2]
[420615299,1776347446787,-500.0,0.00010299,2]
[420615301,1776347446798,-340.50869544,0.00010299,2]
[420615303,1776347446808,-592.06284554,0.00010299,2]
[420615305,1776347446818,-500.0,0.00010299,2]
[420615307,1776347446827,-500.0,0.00010299,2]
[420615309,1776347446837,-500.0,0.00010299,2]
[420615311,1776347446846,-500.0,0.00010299,2]
[420615313,1776347446856,-500.0,0.00010299,2]
[420615315,1776347446866,-500.0,0.00010299,2]
[420615317,1776347446876,-500.0,0.00010299,2]
[420615319,1776347446886,-500.0,0.00010299,2]
[420615321,1776347446895,-622.94394049,0.00010299,2]
[420615323,1776347446905,-5067.26856605,0.000103,2]
[420615326,1776347446917,-74785.08016618,0.000103,2]
[420617745,1776348631730,-2000.0,9.089e-05,2]
[420617746,1776348631741,-1600.0,9.295e-05,2]
[420617748,1776348632457,-1188.642646,9.552e-05,2]
[420617749,1776348632483,-200.0,9.6e-05,3]
[420617750,1776348632493,-103.26450628,9.692e-05,2]
[420617751,1776348632505,-1096.73549372,9.692e-05,2]
[420617752,1776348632515,-383.78875147,9.693e-05,2]
[420617753,1776348632531,-2975.79914853,9.693e-05,2]
[420617754,1776348632541,-31046.51582906,9.693e-05,2]
[420617755,1776348632552,-4848.22577094,9.693e-05,2]
[420617756,1776348632562,-400.0,9.7e-05,3]
[420617757,1776348632572,-300.0,9.77e-05,2]
[420617758,1776348632582,-578.20924308,9.771e-05,2]
[420617759,1776348632599,-500.0,9.771e-05,2]
[420617760,1776348632608,-500.0,9.773e-05,2]
[420617761,1776348632618,-500.0,9.773e-05,2]
[420617762,1776348632628,-151.0,9.787e-05,2]
[420617763,1776348632638,-9552.16786547,9.787e-05,2]
[420617764,1776348632648,-174.61919141,9.787e-05,2]
[420617765,1776348632657,-150.0,9.791e-05,2]
[420617766,1776348632666,-500.0,9.792e-05,2]
[420617767,1776348632676,-500.0,9.792e-05,2]
[420617768,1776348632686,-500.0,9.792e-05,2]
[420617769,1776348632695,-500.0,9.792e-05,2]
[420617770,1776348632705,-500.0,9.792e-05,2]
[420617771,1776348632714,-500.0,9.792e-05,2]
[420617772,1776348632725,-500.0,9.792e-05,2]
[420617773,1776348632735,-500.0,9.792e-05,2]
[420617774,1776348632745,-500.0,9.792e-05,2]
[420617775,1776348632755,-500.0,9.792e-05,2]
[420617776,1776348632764,-500.0,9.792e-05,2]
[420617777,1776348632774,-500.0,9.792e-05,2]
[420617778,1776348632784,-500.0,9.792e-05,2]
[420617779,1776348632793,-604.44196917,9.792e-05,2]
[420617780,1776348632803,-500.0,9.792e-05,2]
[420617781,1776348632812,-500.0,9.792e-05,2]
[420617782,1776348632821,-1000.0,9.793e-05,2]
[420617783,1776348632830,-700.0,9.8e-05,3]
[420617784,1776348632842,-9905.5980765,9.842e-05,2]
[420617785,1776348632851,-10272.10520533,9.897e-05,2]
[420617786,1776348632861,-900.0,9.9e-05,3]
[420617787,1776348632872,-1288.84099495,9.952e-05,2]
[420617796,1776348637957,-7039.0502601,9.952e-05,2]
[420617797,1776348637967,-235.93802367,0.0001,2]
[420617798,1776348637976,-1200.0,0.0001,3]
[420617799,1776348637986,-7188.0,0.0001,2]
[420617800,1776348637995,-622.0,0.00010143,2]
[420617801,1776348638005,-1348.0,0.00010143,2]
[420617802,1776348638015,-1218.0,0.00010143,2]
[420617803,1776348638024,-926.0,0.00010143,2]
[420617804,1776348638034,-6028.0,0.00010143,2]
[420617805,1776348638043,-416.0,0.00010143,2]
[420617806,1776348638053,-706.0,0.00010176,5]
[420617807,1776348638062,-178.3492717,0.000102,2]
[420617808,1776348638071,-218.17533415,0.00010224,2]
[420617809,1776348638081,-2000.0,0.00010225,2]
[420617810,1776348638091,-2675.34,0.00010229,2]
[420617811,1776348638100,-269.068,0.00010229,2]
[420617812,1776348638110,-200.0,0.00010247,2]
[420617813,1776348638119,-250.0,0.00010247,2]
[420617814,1776348638129,-284.3783034,0.00010255,2]
[420617815,1776348638139,-985.0436038,0.00010255,2]
[420617816,1776348638148,-1933.1680174,0.00010255,2]
[420617817,1776348638158,-3663.8844592,0.00010255,2]
[420617818,1776348638168,-5313.9825975,0.00010255,2]
[420617819,1776348638177,-1162.6286357,0.00010255,2]
[420617820,1776348638187,-152.44,0.00010264,2]
[420617821,1776348638196,-160.0,0.00010268,2]
[420617822,1776348638205,-500.0,0.00010273,2]
[420617823,1776348638215,-15143.2,0.00010274,2]
[420617824,1776348638224,-461.3473731,0.0001029,2]
[420617825,1776348638233,-265.08579366,0.0001029,2]
[420617826,1776348638242,-500.0,0.00010299,2]
[420617827,1776348638251,-500.0,0.00010299,2]
[420617828,1776348638262,-212.28330803,0.00010299,2]
[420617829,1776348638272,-588.35608681,0.00010299,2]
[420617830,1776348638281,-197.36783226,0.00010299,2]
[420617831,1776348638290,-250.0,0.00010299,2]
[420617832,1776348638299,-9008.91309955,0.000103,2]
[420617833,1776348638326,-22765.77874774,0.000103,2]
[420617834,1776348638407,-4268.27809558,0.000103,2]
[420617835,1776348638419,-2534.97515975,0.000103,2]
[420617836,1776348638431,-3686.11599791,0.000103,2]
[420617838,1776348638443,-5650.43826334,0.000103,2]
[420617839,1776348638454,-3722.15844723,0.000103,2]
[420617840,1776348638466,-3264.63407939,0.000103,2]
[420617841,1776348638477,-2805.56620194,0.000103,2]
[420617842,1776348638523,-1153.90000004,0.000103,2]
[420617843,1776348638535,-2254.99605,0.000103,2]
[420617844,1776348638546,-42710.06804344,0.000103,2]
[420617845,1776348638557,-423.75000005,0.000103,2]
[420617906,1776348639965,-347.56751982,0.000103,2]
[420617907,1776348640021,-3959.20251,0.000103,2]
[420617908,1776348640074,-3512.02577281,0.000103,2]
[420617909,1776348640085,-734.62,0.000103,2]
[420617910,1776348640128,-4139.35358056,0.000103,2]
[420617911,1776348640139,-6720.0,0.000103,2]
[420617952,1776348642930,-2473.0,0.00010073,2]
[420617953,1776348642940,-43841.87254956,0.000103,2]
[420617954,1776348642949,-165.4221,0.000103,2]
[420617955,1776348642958,-183.81313736,0.000103,2]
[420617956,1776348642967,-27635.89221308,0.000103,2]
[420617957,1776348642978,-779.31660506,0.000103,2]
[420617958,1776348642991,-1897.46000004,0.000103,2]
[420617959,1776348643002,-2684.3835031,0.000103,2]
[420617960,1776348643022,-7543.50976396,0.000103,2]
[420617961,1776348643145,-404.68704,0.000103,2]
[420617962,1776348643156,-1866.78295247,0.000103,2]
[420617963,1776348643168,-178459.61404076,0.000103,2]
[420617964,1776348643252,-352.9155093,0.000103,2]
[420617971,1776348646912,-155185.23755899,0.000103,2]
[420617972,1776348646925,-151.0,0.000103,2]
[420617973,1776348646934,-200.0,0.000103,2]
[420617974,1776348646944,-164.09524,0.000103,2]
[420617975,1776348646953,-151.0,0.000103,2]
[420617976,1776348646963,-500.0,0.000103,2]
[420617977,1776348646972,-151.0,0.000103,2]
[420617978,1776348646982,-151.0,0.000103,2]
[420617980,1776348646991,-179.666943,0.000103,2]
[420617981,1776348647000,-5532.0,0.000103,3]
[420618019,1776348647539,-160.0,0.000103,3]
[420618020,1776348647549,-200.0,0.000103,2]
[420618021,1776348647559,-151.0,0.000103,2]
[420618022,1776348647569,-168.0,0.000103,3]
[420618023,1776348647578,-151.0,0.000103,2]
[420618024,1776348647587,-271.00489776,0.000103,2]
[420618025,1776348647597,-151.0,0.000103,2]
[420618026,1776348647606,-153.460156,0.000103,2]
[420618027,1776348647616,-152.0,0.00010311,7]
[420618028,1776348647625,-150.0,0.00010312,2]
[420618029,1776348647635,-214.888183,0.00010313,2]
[420618030,1776348647644,-156.587,0.00010335,2]
[420618031,1776348647654,-181.08010149,0.00010335,2]
[420618032,1776348647663,-559.70798678,0.0001038,2]
[420618033,1776348647672,-6814.0,0.00010384,2]
[420618034,1776348647681,-1428.38747117,0.00010384,2]
[420618035,1776348647690,-721.12765535,0.00010384,2]
[420618036,1776348647700,-151.0,0.00010384,2]
[420618037,1776348647708,-151.0,0.00010384,2]
[420618038,1776348647718,-151.0,0.00010384,2]
[420618039,1776348647728,-151.0,0.00010384,2]
[420618040,1776348647738,-151.0,0.00010384,2]
[420618041,1776348647748,-151.0,0.00010384,2]
[420618042,1776348647758,-151.0,0.00010384,2]
[420618043,1776348647768,-151.0,0.00010384,2]
[420618044,1776348647778,-151.0,0.00010384,2]
[420618045,1776348647788,-151.0,0.00010384,2]
[420618046,1776348647797,-151.0,0.00010384,2]
[420618047,1776348647807,-500.0,0.00010384,2]
[420618048,1776348647817,-500.0,0.00010384,2]
[420618049,1776348647827,-500.0,0.00010384,2]
[420618050,1776348647837,-500.0,0.00010384,2]
[420618051,1776348647848,-500.0,0.00010384,2]
[420618052,1776348647858,-500.0,0.00010384,2]
[420618053,1776348647867,-230.44659801,0.00010384,2]
[420618054,1776348647877,-500.0,0.00010384,2]
[420618055,1776348647886,-500.0,0.00010384,2]
[420618056,1776348647895,-500.0,0.00010384,2]
[420618057,1776348647905,-500.0,0.00010384,2]
[420618058,1776348647914,-500.0,0.00010384,2]
[420618059,1776348647924,-814.0,0.0001039,5]
[420618060,1776348647933,-246198.33425593,0.0001039,2]
[420618061,1776348647992,-17336.1401,0.0001039,2]
[420618062,1776348648004,-3752.53033485,0.0001039,2]
[420618063,1776348648035,-1200.24753271,0.0001039,2]
[420618064,1776348648047,-485.01201042,0.0001039,2]
[420618065,1776348648074,-11491.50000005,0.0001039,2]
[420618066,1776348648086,-14735.8,0.0001039,2]
[420618067,1776348648097,-6917.09999992,0.0001039,2]
[420618068,1776348648111,-1229.46290197,0.0001039,2]
[420618069,1776348648123,-10293.86191905,0.0001039,2]
[420618070,1776348794323,194.77,0.000155,120]
[420618071,1776348995846,175.3,0.000155,120]
[420618072,1776349071967,210.53207181,0.000165,45]
[420618073,1776349182023,157.77,0.000155,120]
[420618074,1776349205311,160.0,8.116e-05,3]
[420618075,1776349371078,150.0,0.000144,120]
[420618076,1776349426423,-966.56,9.086e-05,2]
[420618077,1776349426444,-200.0,9.276e-05,2]
[420618078,1776349426465,-442.2,9.447e-05,2]
[420618079,1776349426486,-664.24,9.481e-05,2]
[420618080,1776349426507,-1500.0,9.481e-05,2]
[420618081,1776349426528,-164.75,9.606e-05,2]
[420618082,1776349426549,-300.0,9.672e-05,2]
[420618083,1776349426569,-500.0,9.673e-05,2]
[420618084,1776349426589,-500.0,9.673e-05,2]
[420618085,1776349426610,-500.0,9.673e-05,2]
[420618086,1776349426631,-500.0,9.673e-05,2]
[420618087,1776349426652,-500.0,9.673e-05,2]
[420618088,1776349426672,-500.0,9.673e-05,2]
[420618089,1776349426693,-151.0,9.69e-05,2]
[420618090,1776349426714,-300.0,9.69e-05,2]
[420618091,1776349426735,-300.0,9.691e-05,2]
[420618092,1776349426757,-1200.0,9.691e-05,2]
[420618093,1776349426778,-150.0,9.691e-05,2]
[420618094,1776349426803,-661.25,9.692e-05,2]
[420618095,1776349446089,162.56,8.306e-05,2]
[420618096,1776349486916,-1738.22,9.193e-05,2]
[420618097,1776349486945,-150.0,9.691e-05,2]
[420618098,1776349486973,-300.0,9.691e-05,2]
[420618099,1776349487004,-7811.78,9.692e-05,2]
[420618103,1776349546506,-300.0,9.691e-05,2]
[420618104,1776349546528,-1200.0,9.691e-05,2]
[420618105,1776349546554,-1700.0,9.692e-05,2]
[420618106,1776349560554,150.0,0.000142,120]
[420618107,1776349582507,-1200.0,9.692e-05,2]
[420618108,1776349748981,-150.0,8.978e-05,2]
[420618109,1776349749002,-5390.813866,9.256e-05,2]
[420618110,1776349805286,160.0,8.116e-05,3]
[420618145,1776349833673,-488.136134,9.256e-05,2]
[420618146,1776349833683,-24362.2255,9.592e-05,2]
[420618147,1776349833693,-1200.0,9.592e-05,2]
[420618148,1776349833702,-21626.2033,9.593e-05,2]
[420618149,1776349833711,-300.0,9.6e-05,3]
[420618150,1776349833720,-500.0,9.673e-05,2]
[420618151,1776349833730,-150.0,9.691e-05,2]
[420618152,1776349833739,-1000.0,9.693e-05,2]
[420618153,1776349833749,-150.0,9.697e-05,2]